bitfinex/quotes_BTCUSD_20260117
["timestamp","ask_amount","ask_price","bid_price","bid_amount"]
[1768647142716,0.02314262,95050.0,95046.0,0.00017825]
[1768647142919,0.01052088,95049.0,95046.0,0.00017825]
[1768647143905,0.02314262,95050.0,95046.0,0.01069947]
[1768647144332,0.01262185,95050.0,95047.0,0.01052111]
[1768647144714,0.01052055,95052.0,95047.0,0.01052111]
[1768647144897,0.01052055,95052.0,95048.0,0.01052099]
[1768647145300,0.01052066,95051.0,95047.0,0.01052111]
[1768647146414,0.01052077,95050.0,95046.0,0.01069947]
[1768647146620,0.01052088,95049.0,95046.0,0.00017825]
[1768647147351,0.01052077,95050.0,95046.0,0.01069947]
[1768647148945,0.02314262,95050.0,95046.0,0.01069947]
[1768647150755,0.02314262,95050.0,95046.0,0.00017825]
[1768647150972,0.02305179,95050.0,95046.0,0.00017825]
[1768647152022,0.01052088,95049.0,95046.0,0.00017825]
[1768647153407,0.02305179,95050.0,95046.0,0.01069947]
[1768647154902,0.01052088,95049.0,95046.0,0.00017825]
[1768647157706,0.01052088,95049.0,95046.0,9.444e-05]
[1768647158474,0.02305179,95050.0,95046.0,9.444e-05]
[1768647158672,0.02305179,95050.0,95046.0,0.01061566]
[1768647159323,0.02305179,95050.0,95046.0,9.444e-05]
[1768647159825,0.01052088,95049.0,95046.0,9.444e-05]
[1768647160057,0.02305179,95050.0,95046.0,9.444e-05]
[1768647160271,0.02305179,95050.0,95046.0,0.01061566]
[1768647160820,0.02305179,95050.0,95046.0,9.444e-05]
[1768647160959,0.02296096,95050.0,95046.0,0.01061566]
[1768647161362,0.02296096,95050.0,95046.0,9.444e-05]
[1768647161973,0.01052088,95049.0,95046.0,9.444e-05]
[1768647165015,0.02296096,95050.0,95046.0,0.01061566]
[1768647165217,0.02296096,95050.0,95046.0,9.444e-05]
[1768647165624,0.01052088,95049.0,95046.0,9.444e-05]
[1768647167481,0.01043005,95049.0,95046.0,9.444e-05]
[1768647168879,0.0100379,95049.0,95046.0,9.444e-05]
[1768647169083,0.06264248,95049.0,95046.0,9.444e-05]
[1768647171337,0.05260514,95048.0,95046.0,9.444e-05]
[1768647172897,0.05260555,95047.0,95046.0,9.444e-05]
[1768647176233,0.05260513,95048.0,95046.0,9.444e-05]
[1768647176456,0.0100379,95049.0,95046.0,9.444e-05]
[1768647177214,0.06264237,95049.0,95046.0,9.444e-05]
[1768647180412,0.0100379,95049.0,95046.0,9.444e-05]
[1768647180828,0.05260539,95048.0,95046.0,9.444e-05]
[1768647181040,0.0522132,95048.0,95046.0,9.444e-05]
[1768647181680,0.06264235,95049.0,95046.0,9.444e-05]
[1768647182310,0.0100379,95049.0,95046.0,9.444e-05]
[1768647184054,0.06264236,95049.0,95046.0,9.444e-05]
[1768647184277,0.0100379,95049.0,95046.0,9.444e-05]
[1768647185676,0.06264238,95049.0,95046.0,9.444e-05]
[1768647186089,0.0100379,95049.0,95046.0,9.444e-05]
[1768647188556,0.0626424,95049.0,95046.0,9.444e-05]
[1768647188759,0.07508259,95049.0,95046.0,9.444e-05]
[1768647189338,0.05260499,95048.0,95046.0,9.444e-05]
[1768647190084,0.05260506,95048.0,95046.0,9.444e-05]
[1768647191590,0.0100379,95049.0,95046.0,9.444e-05]
[1768647192557,0.00964559,95049.0,95046.0,9.444e-05]
[1768647193587,0.06225005,95049.0,95046.0,4.903e-05]
[1768647193821,0.06225006,95049.0,95046.0,4.903e-05]
[1768647194256,0.00964559,95049.0,95046.0,4.903e-05]
[1768647194466,0.05260555,95047.0,95046.0,4.903e-05]
[1768647198411,0.05260499,95048.0,95046.0,4.903e-05]
[1768647198819,0.05260555,95047.0,95046.0,4.903e-05]
[1768647200930,0.06225112,95049.0,95046.0,4.903e-05]
[1768647201287,0.05260555,95047.0,95046.0,4.903e-05]
[1768647204238,0.00964559,95049.0,95046.0,4.903e-05]
[1768647204419,0.05260542,95048.0,95046.0,4.903e-05]
[1768647204620,0.12744,95057.0,95052.0,0.01052055]
[1768647204845,0.12744,95057.0,95052.0,0.01047515]
[1768647205060,0.12744,95057.0,95053.0,0.06312246]
[1768647205268,0.12744,95057.0,95053.0,0.01052044]
[1768647205480,0.12744,95057.0,95054.0,0.01052033]
[1768647206828,0.12744,95057.0,95054.0,0.06312196]
[1768647207170,0.12744,95057.0,95054.0,0.06307656]
[1768647207783,0.12744,95057.0,95055.0,0.05260108]
[1768647208047,0.12744,95057.0,95054.0,0.01047493]
[1768647208468,0.12744,95057.0,95055.0,0.0526011]
[1768647208685,0.12744,95057.0,95054.0,0.01047493]
[1768647209213,0.12744,95057.0,95054.0,0.06307638]
[1768647209764,0.12744,95057.0,95054.0,0.01047493]
[1768647212045,0.12744,95057.0,95054.0,0.06307657]
[1768647213510,0.12744,95057.0,95054.0,0.01052033]
[1768647213864,0.12744,95057.0,95053.0,0.01052044]
[1768647214067,0.12744,95057.0,95054.0,0.01052033]
[1768647215874,0.12744,95057.0,95053.0,0.01052044]
[1768647216094,0.13796,95057.0,95053.0,0.01052044]
[1768647216496,0.12744,95057.0,95053.0,0.01052044]
[1768647216721,0.12744,95057.0,95054.0,0.01052033]
[1768647216858,0.17660944,95057.0,95052.0,0.01047515]
[1768647217266,0.12744,95057.0,95052.0,0.01047515]
[1768647217471,0.13796,95057.0,95053.0,0.01052044]
[1768647218518,0.01052011,95056.0,95052.0,0.01047515]
[1768647220166,0.13796,95057.0,95052.0,0.01047515]
[1768647220378,0.12744,95057.0,95053.0,0.01052044]
[1768647220740,0.13796,95057.0,95053.0,0.01052044]
[1768647221487,0.12744,95057.0,95053.0,0.01052044]
[1768647222256,0.12744,95057.0,95053.0,0.06312258]
[1768647222660,0.12744,95057.0,95053.0,0.01052044]
[1768647222859,0.12744,95057.0,95054.0,0.01052033]
[1768647223907,0.12744,95057.0,95054.0,0.06312187]
[1768647224108,0.12744,95057.0,95054.0,0.01052033]
[1768647226828,0.12744,95057.0,95054.0,0.06312198]
[1768647227327,0.12744,95057.0,95055.0,0.05260112]
[1768647228532,0.12744,95057.0,95056.0,0.05260057]
[1768647229116,0.01052066,95061.0,95057.0,0.01052]
[1768647229315,0.12744,95060.0,95058.0,0.01051989]
[1768647229521,0.12744,95060.0,95058.0,0.06311933]
[1768647230168,0.12744,95062.0,95059.0,0.01051978]
[1768647230369,0.12744,95062.0,95058.0,0.01051989]
[1768647230571,0.04916944,95061.0,95058.0,0.01051989]
[1768647232408,0.059689,95061.0,95057.0,0.01052]
[1768647232601,0.04916944,95061.0,95058.0,0.01051989]
[1768647233102,0.01051933,95063.0,95059.0,0.01051978]
[1768647233280,0.01051933,95063.0,95058.0,0.01051989]
[1768647233281,0.19055615,95063.0,95058.0,0.01051989]
[1768647233486,0.13795933,95063.0,95058.0,0.01051989]
[1768647234002,0.13795933,95063.0,95059.0,0.01051978]
[1768647235007,0.13795933,95063.0,95058.0,0.01051989]
[1768647237265,0.13795933,95063.0,95059.0,0.01051978]
[1768647239209,0.13756613,95063.0,95059.0,0.01051978]
[1768647239664,0.13717286,95063.0,95059.0,0.01051978]
[1768647241198,0.12744,95063.0,95060.0,0.01051967]
[1768647241403,0.12744,95063.0,95060.0,0.01047427]
[1768647241603,0.12744,95063.0,95059.0,0.01051978]
[1768647242219,0.13795933,95063.0,95059.0,0.01051978]
[1768647244065,0.12744,95063.0,95060.0,0.01051967]
[1768647244679,0.13795933,95063.0,95058.0,0.01051989]
[1768647245698,0.13795933,95063.0,95059.0,0.01051978]
[1768647245921,0.12744,95063.0,95058.0,0.01051989]
[1768647246096,0.12744,95063.0,95059.0,0.01051978]
[1768647246250,0.13795933,95063.0,95058.0,0.01051989]
[1768647246454,0.01051945,95062.0,95058.0,0.01051989]
[1768647246870,0.12744,95063.0,95059.0,0.01051978]
[1768647247076,0.12744,95063.0,95060.0,0.01051967]
[1768647247303,0.05778067,95069.0,95063.0,0.01051933]
[1768647247529,0.0001583,95071.0,95067.0,0.01051889]
[1768647247724,0.12744,95068.0,95067.0,0.01051889]
[1768647248706,0.12744,95068.0,95066.0,0.010519]
[1768647249151,0.12744,95068.0,95065.0,0.06311462]
[1768647249152,0.12744,95068.0,95065.0,0.01051911]
[1768647249392,0.13795878,95068.0,95062.0,0.01051945]
[1768647249721,0.01051889,95067.0,95062.0,0.01051945]
[1768647249896,0.13795878,95068.0,95063.0,0.01051933]
[1768647250097,0.01051889,95067.0,95063.0,0.01051933]
[1768647250311,0.13795878,95068.0,95063.0,0.01051933]
[1768647251201,0.13795878,95068.0,95064.0,0.01051922]
[1768647251954,0.13795878,95068.0,95063.0,0.01051933]
[1768647252286,0.13795878,95068.0,95064.0,0.01051922]
[1768647253212,0.13795878,95068.0,95063.0,0.01051933]
[1768647253831,0.13795878,95068.0,95064.0,0.01051922]
[1768647254183,0.047262,95067.0,95064.0,0.01051922]
[1768647254522,0.047262,95067.0,95061.0,0.06311687]
[1768647254743,0.047262,95067.0,95063.0,0.01051933]
[1768647254930,0.05778089,95067.0,95063.0,0.01051933]
[1768647257257,0.05778089,95067.0,95062.0,0.01051945]
[1768647257682,0.010519,95066.0,95061.0,0.01051956]
[1768647257896,0.01051911,95065.0,95061.0,0.01051956]
[1768647258758,0.02295941,95064.0,95058.0,0.01051989]
[1768647258962,0.01052,95057.0,95053.0,0.01052044]
[1768647259821,0.01051989,95058.0,95053.0,0.01052044]
[1768647260252,0.01051989,95058.0,95054.0,0.01052033]
[1768647261108,0.01051978,95059.0,95055.0,0.01052022]
[1768647261670,0.01051978,95059.0,95054.0,0.01052033]
[1768647261918,0.01051978,95059.0,95055.0,0.01052022]
[1768647262126,0.01051978,95059.0,95054.0,0.01052033]
[1768647267182,0.01051967,95060.0,95055.0,0.01052022]
[1768647267621,0.01051978,95059.0,95055.0,0.01052022]
[1768647273370,0.06311814,95060.0,95055.0,0.01052022]
[1768647273371,0.01051956,95061.0,95056.0,0.01052011]
[1768647274372,0.01051956,95061.0,95057.0,0.01052]
[1768647275346,0.01051967,95060.0,95055.0,0.01052022]
[1768647275475,0.01051967,95060.0,95056.0,0.01052011]
[1768647277637,0.01051956,95061.0,95056.0,0.01052011]
[1768647277793,0.01051967,95060.0,95056.0,0.01052011]
[1768647279085,0.01051956,95061.0,95056.0,0.01052011]
[1768647279494,0.01051956,95061.0,95057.0,0.01052]
[1768647279924,0.01244019,95062.0,95058.0,0.01051989]
[1768647280126,0.01051933,95063.0,95058.0,0.01051989]
[1768647280323,0.02295964,95062.0,95057.0,0.01052]
[1768647281065,0.02295964,95062.0,95056.0,0.06312054]
[1768647281066,0.01051967,95060.0,95056.0,0.01052011]
[1768647281997,0.01051967,95060.0,95055.0,0.01052022]
[1768647282201,0.01051978,95059.0,95055.0,0.01052022]
[1768647284978,0.01051978,95059.0,95054.0,0.01052033]
[1768647285399,0.01051989,95058.0,95054.0,0.01052033]
[1768647285601,0.01051967,95060.0,95055.0,0.01052022]
[1768647285752,0.01051989,95058.0,95054.0,0.01052033]
[1768647288719,0.01052,95057.0,95053.0,0.01052044]
[1768647289219,0.01051989,95058.0,95053.0,0.01052044]
[1768647290239,0.01051989,95058.0,95054.0,0.01052033]
[1768647290447,0.01051978,95059.0,95054.0,0.01052033]
[1768647290992,0.01051978,95059.0,95055.0,0.01052022]
[1768647291206,0.01051978,95059.0,95055.0,0.01044145]
[1768647291739,0.01051967,95060.0,95055.0,0.01044145]
[1768647292303,0.01051967,95060.0,95056.0,0.01052011]
[1768647292904,0.01051945,95062.0,95057.0,0.01052]
[1768647293084,0.02295964,95062.0,95057.0,0.01052]
[1768647293281,0.01051956,95061.0,95057.0,0.01052]
[1768647293510,0.01051967,95060.0,95055.0,0.01044145]
[1768647294327,0.01051967,95060.0,95056.0,0.01052011]
[1768647295167,0.01051967,95060.0,95055.0,0.01044145]
[1768647295878,0.01051967,95060.0,95056.0,0.01052011]
[1768647296375,0.01051956,95061.0,95056.0,0.01052011]
[1768647296672,0.02295964,95062.0,95057.0,0.01052]
[1768647296880,0.01051956,95061.0,95057.0,0.01052]
[1768647297662,0.02295964,95062.0,95057.0,0.01052]
[1768647298474,0.01244019,95062.0,95058.0,0.01051989]
[1768647298664,0.02295964,95062.0,95057.0,0.01052]
[1768647298932,0.01051945,95062.0,95058.0,0.01051989]
[1768647299276,0.02295952,95063.0,95059.0,0.01051978]
[1768647299654,0.01244019,95063.0,95059.0,0.01051978]
[1768647300477,0.01244019,95063.0,95049.0,0.01052088]
[1768647300478,0.01051956,95061.0,95049.0,0.01052088]
[1768647300917,0.01051956,95061.0,95051.0,0.117686]
[1768647301126,0.01052033,95054.0,95051.0,0.117686]
[1768647301346,0.01052077,95050.0,95047.0,0.0315496]
[1768647301572,0.01052066,95051.0,95050.0,0.00343527]
[1768647301783,0.00486463,95051.0,95050.0,0.00343527]
[1768647301988,0.01052055,95052.0,95042.0,1e-08]
[1768647301989,0.01052133,95045.0,95042.0,1e-08]
[1768647302441,0.01052133,95045.0,95043.0,0.01052055]
[1768647302665,0.01052122,95046.0,95043.0,0.01052055]
[1768647303090,0.06312843,95045.0,95042.0,1e-08]
[1768647303325,0.05260728,95044.0,95042.0,0.01052056]
[1768647303569,0.05251647,95044.0,95042.0,0.01052056]
[1768647304011,0.01052133,95045.0,95042.0,0.01052056]
[1768647304012,0.05260776,95043.0,95042.0,1e-08]
[1768647304190,0.01052166,95042.0,95039.0,0.0002]
[1768647304331,0.0631303,95042.0,95039.0,0.00024734]
[1768647304533,0.01052166,95042.0,95039.0,0.00024734]
[1768647304733,0.01052133,95045.0,95039.0,0.01076933]
[1768647304995,0.01052166,95042.0,95039.0,0.00024734]
[1768647307083,0.01032133,95041.0,95039.0,0.00024734]
[1768647308466,0.06293024,95041.0,95039.0,0.00024734]
[1768647308883,0.01032133,95041.0,95039.0,0.00024734]
[1768647309129,0.01052166,95042.0,95041.0,0.00319536]
[1768647309318,0.01052155,95043.0,95041.0,0.00319536]
[1768647312193,0.01052144,95044.0,95041.0,0.00319536]
[1768647314609,0.01052133,95045.0,95041.0,0.01371713]
[1768647316043,0.01052144,95044.0,95041.0,0.00319536]
[1768647317982,0.01052122,95046.0,95041.0,0.00319536]
[1768647318975,0.01052133,95045.0,95041.0,0.01371713]
[1768647320019,0.01052111,95047.0,95043.0,0.01052155]
[1768647320253,0.01052111,95047.0,95042.0,0.01052166]
[1768647320254,0.01052122,95046.0,95042.0,0.01052166]
[1768647322433,0.04976685,95053.0,95047.0,0.01052111]
[1768647322666,0.04976685,95053.0,95049.0,0.05260415]
[1768647322865,0.04976685,95053.0,95050.0,0.05260384]
[1768647323114,0.04976685,95053.0,95049.0,0.05260424]
[1768647323327,0.04976685,95053.0,95050.0,0.01052077]
[1768647324050,0.06028729,95053.0,95048.0,0.01052099]
[1768647324903,0.01052055,95052.0,95048.0,0.01052099]
[1768647325056,0.0586439,95052.0,95048.0,0.01052099]
[1768647325921,0.04812335,95052.0,95049.0,0.01052088]
[1768647327506,0.11124671,95052.0,95047.0,0.01052111]
[1768647328365,0.0586439,95052.0,95048.0,0.01052099]
[1768647329792,0.04812335,95052.0,95049.0,0.01052088]
[1768647332462,0.04812335,95052.0,95048.0,0.01052099]
[1768647333848,0.00034211,95049.0,95048.0,0.01052099]
[1768647334481,0.00034211,95049.0,95048.0,0.06292945]
[1768647334651,0.00034211,95049.0,95048.0,0.01032446]
[1768647335269,0.00034211,95049.0,95048.0,0.06292945]
[1768647338737,0.12744,95050.0,95049.0,0.05260444]
[1768647340045,0.12744,95050.0,95048.0,0.01032446]
[1768647340436,0.12744,95050.0,95049.0,0.05260444]
[1768647341347,0.12744,95050.0,95048.0,0.06292941]
[1768647341710,0.12744,95050.0,95048.0,0.01032446]
[1768647342469,0.12744,95050.0,95048.0,0.06273299]
[1768647343233,0.12744,95050.0,95049.0,0.05260444]
[1768647343626,0.12744,95050.0,95048.0,0.0627329]
[1768647344325,0.12744,95050.0,95049.0,0.05260444]
[1768647350740,0.12744,95050.0,95048.0,0.01012802]
[1768647351376,0.12744,95050.0,95048.0,0.0627326]
[1768647351963,0.12744,95050.0,95049.0,0.05260444]
[1768647352961,0.12744,95050.0,95048.0,0.06253655]
[1768647355031,0.12744,95050.0,95048.0,0.00993166]
[1768647357023,0.12744,95050.0,95048.0,0.06253627]
[1768647357158,0.12744,95050.0,95048.0,0.00993166]
[1768647358071,0.12744,95050.0,95047.0,0.01052111]
[1768647358276,0.12744,95050.0,95047.0,0.06312658]
[1768647358708,0.12744,95050.0,95047.0,0.01052111]
[1768647359107,0.12744,95050.0,95047.0,0.06312656]
[1768647360078,0.12744,95050.0,95048.0,0.05260468]
[1768647360285,0.12744,95050.0,95047.0,0.06312664]
[1768647360511,0.12744,95050.0,95048.0,0.05260494]
[1768647360742,0.12744,95050.0,95047.0,0.01052111]
[1768647360951,0.12744,95050.0,95048.0,0.0526046]
[1768647362126,0.12744,95050.0,95049.0,0.05260444]
[1768647364293,0.12744,95050.0,95048.0,0.05260492]
[1768647364472,0.12744,95050.0,95047.0,0.01052111]
[1768647364877,0.12744,95050.0,95049.0,0.05260444]
[1768647367780,0.12744,95050.0,95048.0,0.05260488]
[1768647368549,0.12744,95050.0,95047.0,0.01052111]
[1768647368550,0.12744,95050.0,95049.0,0.05260444]
[1768647369670,0.12744,95050.0,95049.0,0.04692467]
[1768647370133,0.12744,95050.0,95048.0,0.05260485]
[1768647370348,0.12744,95050.0,95047.0,0.01052111]
[1768647370952,0.12744,95050.0,95048.0,0.05260499]
[1768647371357,0.12744,95050.0,95049.0,0.05260444]
[1768647373112,0.12734919,95050.0,95049.0,0.05260444]
[1768647377051,0.04904279,95055.0,95052.0,0.01052055]
[1768647378261,0.04904279,95055.0,95052.0,0.06312313]
[1768647378467,0.04904279,95055.0,95053.0,0.0526018]
[1768647379161,0.04904279,95055.0,95052.0,0.06312313]
[1768647379162,0.04904279,95055.0,95054.0,0.05260167]
[1768647379377,0.02104078,95061.0,95058.0,0.01051989]
[1768647379378,0.12744,95061.0,95058.0,0.01051989]
[1768647379587,0.13795956,95061.0,95056.0,0.01052011]
[1768647379785,0.00831522,95060.0,95055.0,0.01052022]
[1768647380510,0.00831522,95060.0,95056.0,0.01052011]
[1768647380829,0.00831522,95060.0,95056.0,0.01044132]
[1768647381164,0.13795956,95061.0,95056.0,0.01044132]
[1768647381415,0.13795956,95061.0,95057.0,0.01052]
[1768647381895,0.13795956,95061.0,95056.0,0.01044132]
[1768647382665,0.18564294,95061.0,95056.0,0.01044132]
[1768647382822,0.18564294,95061.0,95057.0,0.01052]
[1768647385223,0.18524929,95061.0,95057.0,0.01052]
[1768647386489,0.17472973,95061.0,95058.0,0.01051989]
[1768647388370,0.17472973,95061.0,95057.0,0.01052]
[1768647391339,0.17472973,95061.0,95058.0,0.01051989]
[1768647394122,0.17472973,95061.0,95058.0,0.0104411]
[1768647394821,0.17472973,95061.0,95058.0,0.06304048]
[1768647395026,0.17472973,95061.0,95056.0,0.01044132]
[1768647395239,0.18524929,95061.0,95057.0,0.01052]
[1768647396260,0.18485563,95061.0,95057.0,0.01052]
[1768647400155,0.17433607,95061.0,95058.0,0.01051989]
[1768647400334,0.18485563,95061.0,95057.0,0.01052]
[1768647400967,0.18485563,95061.0,95056.0,0.06304182]
[1768647400968,0.01051978,95059.0,95053.0,0.0526018]
[1768647401208,0.0101261,95059.0,95055.0,0.01052022]
[1768647401510,0.0101261,95059.0,95054.0,0.01052033]
[1768647401868,0.01051989,95058.0,95054.0,0.01052033]
[1768647402529,0.01051967,95060.0,95055.0,0.01052022]
[1768647402956,0.01012602,95060.0,95055.0,0.01052022]
[1768647403261,0.01012602,95060.0,95056.0,0.01052011]
[1768647403665,0.00973231,95060.0,95056.0,0.01052011]
[1768647404694,0.18485563,95061.0,95056.0,0.01052011]
[1768647404830,0.01051967,95060.0,95056.0,0.01052011]
[1768647406445,0.13717225,95061.0,95057.0,0.01052]
[1768647408811,0.18451691,95061.0,95057.0,0.01052]
[1768647410782,0.18412319,95061.0,95057.0,0.01052]
[1768647411406,0.18372947,95061.0,95057.0,0.01052]
[1768647411612,0.18351325,95061.0,95057.0,0.01052]
[1768647411832,0.18333575,95061.0,95057.0,0.01052]
[1768647412671,0.01051967,95060.0,95056.0,0.01052011]
[1768647413839,0.01051967,95060.0,95055.0,0.01052022]
[1768647414134,0.01051978,95059.0,95055.0,0.01052022]
[1768647414848,0.01051989,95058.0,95054.0,0.01052033]
[1768647418263,0.01052,95057.0,95053.0,0.01052044]
[1768647418982,0.01051989,95058.0,95054.0,0.01052033]
[1768647424311,0.01051978,95059.0,95055.0,0.01052022]
[1768647424607,0.01051978,95059.0,95054.0,0.01052033]
[1768647424830,0.01051989,95058.0,95054.0,0.01052033]
[1768647425665,0.01051978,95059.0,95054.0,0.01052033]
[1768647425894,0.01051989,95058.0,95054.0,0.01052033]
[1768647430883,0.01051978,95059.0,95054.0,0.01052033]
[1768647431267,0.01051989,95058.0,95054.0,0.01052033]
[1768647433244,0.01051978,95059.0,95054.0,0.01052033]
[1768647434238,0.17478466,95061.0,95058.0,0.01051989]
[1768647434574,0.17478466,95061.0,95057.0,0.01052]
[1768647434779,0.17478466,95061.0,95058.0,0.01051989]
[1768647435471,0.17478466,95061.0,95057.0,0.01052]
[1768647435843,0.17478466,95061.0,95058.0,0.01051989]
[1768647436417,0.17478466,95061.0,95058.0,0.00911842]
[1768647439857,0.17478466,95061.0,95058.0,0.06171769]
[1768647440825,0.17478466,95061.0,95058.0,0.00911842]
[1768647443364,0.17478466,95061.0,95057.0,0.01052]
[1768647443899,0.17478466,95061.0,95058.0,0.01051989]
[1768647447449,0.17478466,95061.0,95058.0,0.0631193]
[1768647447450,0.12744,95061.0,95058.0,0.0631193]
[1768647447857,0.12744,95061.0,95058.0,0.01051989]
[1768647450010,0.12744,95062.0,95059.0,0.01051978]
[1768647450213,0.13795945,95062.0,95058.0,0.01051989]
[1768647450658,0.12744,95062.0,95059.0,0.01051978]
[1768647450877,0.13795945,95062.0,95058.0,0.01051989]
[1768647452737,0.05626192,95063.0,95059.0,0.01051978]
[1768647452937,0.13795945,95062.0,95058.0,0.01051989]
[1768647455334,0.13795945,95062.0,95057.0,0.01052]
[1768647455870,0.13795945,95062.0,95058.0,0.01051989]
[1768647456719,0.12744,95062.0,95058.0,0.01051989]
[1768647457149,0.13795945,95062.0,95058.0,0.01051989]
[1768647459527,0.13795945,95062.0,95059.0,0.01051978]
[1768647459528,0.12744,95062.0,95059.0,0.01051978]
[1768647459758,0.01051956,95061.0,95056.0,0.01052011]
[1768647459960,0.01051967,95060.0,95056.0,0.01052011]
[1768647460124,0.01051956,95061.0,95057.0,0.01052]
[1768647460747,0.13795945,95062.0,95058.0,0.01051989]
[1768647464709,0.01051956,95061.0,95057.0,0.01052]
[1768647464916,0.12744,95062.0,95058.0,0.01051989]
[1768647465120,0.13795945,95062.0,95058.0,0.01051989]
[1768647466549,0.12744,95062.0,95059.0,0.01051978]
[1768647466796,0.12744,95062.0,95059.0,0.01047437]
[1768647469958,0.12744,95062.0,95058.0,0.01051989]
[1768647470086,0.12744,95062.0,95059.0,0.01051978]
[1768647471259,0.13795945,95062.0,95058.0,0.01051989]
[1768647471488,0.12744,95062.0,95059.0,0.01051978]
[1768647471712,0.12744,95062.0,95058.0,0.01051989]
[1768647471900,0.12744,95062.0,95059.0,0.01051978]
[1768647472078,0.13795945,95062.0,95058.0,0.01051989]
[1768647472482,0.12744,95062.0,95059.0,0.01051978]
[1768647472682,0.12744,95062.0,95059.0,0.01047437]
[1768647472888,0.13795945,95062.0,95058.0,0.01051989]
[1768647473092,0.12744,95062.0,95059.0,0.01051978]
[1768647474314,0.13795945,95062.0,95057.0,0.01052]
[1768647474933,0.13795945,95062.0,95058.0,0.01051989]
[1768647475278,0.13795945,95062.0,95057.0,0.01052]
[1768647475908,0.18460298,95062.0,95057.0,0.01052]
[1768647476128,0.01051956,95061.0,95057.0,0.01052]
[1768647477859,0.01051956,95061.0,95056.0,0.01052011]
[1768647478889,0.01051956,95061.0,95057.0,0.01052]
[1768647479888,0.01051967,95060.0,95055.0,0.01052022]
[1768647480091,0.01051967,95060.0,95056.0,0.01052011]
[1768647480520,0.01051956,95061.0,95056.0,0.01052011]
[1768647482562,0.01051956,95061.0,95057.0,0.01052]
[1768647482764,0.13795945,95062.0,95057.0,0.01052]
[1768647483651,0.13795945,95062.0,95058.0,0.01051989]
[1768647486155,0.01051956,95061.0,95057.0,0.01052]
[1768647486583,0.01051956,95061.0,95056.0,0.01052011]
[1768647486584,0.01051967,95060.0,95056.0,0.01052011]
[1768647489088,0.01051967,95060.0,95049.0,0.21041698]
[1768647489089,0.04664353,95060.0,95040.0,0.18514554]
[1768647489261,0.01052066,95051.0,95047.0,0.01052111]
[1768647489493,0.01052044,95053.0,95047.0,0.01052111]
[1768647489692,0.01052044,95053.0,95048.0,0.01052099]
[1768647490525,0.01052055,95052.0,95048.0,0.01052099]
[1768647494253,0.01052044,95053.0,95049.0,0.01052088]
[1768647494477,0.01052044,95053.0,95048.0,0.01052099]
[1768647494837,0.01052044,95053.0,95049.0,0.01052088]
[1768647496219,0.01052055,95052.0,95048.0,0.01052099]
[1768647496774,0.01052044,95053.0,95048.0,0.01052099]
[1768647497380,0.01052044,95053.0,95049.0,0.01052088]
[1768647498446,0.01052044,95053.0,95048.0,0.01052099]
[1768647498664,0.01052044,95053.0,95049.0,0.01052088]
[1768647499061,0.01052044,95053.0,95048.0,0.01052099]
[1768647499267,0.01052044,95053.0,95049.0,0.01052088]
[1768647500331,0.01052033,95054.0,95050.0,0.01052077]
[1768647500544,0.01052022,95055.0,95051.0,0.01052066]
[1768647501436,0.01052033,95054.0,95050.0,0.01052077]
[1768647504025,0.01052033,95054.0,95049.0,0.01052088]
[1768647504865,0.01052044,95053.0,95049.0,0.01052088]
[1768647506512,0.01052055,95052.0,95048.0,0.01052099]
[1768647507581,0.01052044,95053.0,95049.0,0.01052088]
[1768647509040,0.06312347,95052.0,95046.0,0.01052122]
[1768647509471,0.01052066,95051.0,95047.0,0.01052111]
[1768647510680,0.01052077,95050.0,95046.0,0.01052122]
[1768647511296,0.01052055,95052.0,95047.0,0.01052111]
[1768647511495,0.01052066,95051.0,95047.0,0.01052111]
[1768647513023,0.01052055,95052.0,95047.0,0.01052111]
[1768647513154,0.05260292,95052.0,95046.0,0.01052122]
[1768647513592,0.01052066,95051.0,95047.0,0.01052111]
[1768647513927,0.06312274,95053.0,95048.0,0.01052099]
[1768647513928,0.01052055,95052.0,95048.0,0.01052099]
[1768647515728,0.01052055,95052.0,95047.0,0.01052111]
[1768647517232,0.01052077,95050.0,95046.0,0.01052122]
[1768647519056,0.01052055,95052.0,95047.0,0.01052111]
[1768647519463,0.01052066,95051.0,95047.0,0.01052111]
[1768647520067,0.01052066,95051.0,95046.0,0.01052122]
[1768647520285,0.01052066,95051.0,95047.0,0.01052111]
[1768647522731,0.01052033,95054.0,95048.0,0.01052099]
[1768647522908,0.01052044,95053.0,95049.0,0.01052088]
[1768647524021,0.01052044,95053.0,95049.0,0.01032422]
[1768647525462,0.01052033,95054.0,95049.0,0.01032422]
[1768647526050,0.05260125,95055.0,95050.0,0.01052077]
[1768647526051,0.01052022,95055.0,95050.0,0.01052077]
[1768647526282,0.01052044,95053.0,95049.0,0.01032422]
[1768647529273,0.01052033,95054.0,95050.0,0.01052077]
[1768647529914,0.01052022,95055.0,95050.0,0.01052077]
[1768647530093,0.01052022,95055.0,95051.0,0.01052066]
[1768647530296,0.01052022,95055.0,95050.0,0.01052077]
[1768647530473,0.01052022,95055.0,95051.0,0.01052066]
[1768647533917,0.01052033,95054.0,95050.0,0.01052077]
[1768647535380,0.06038405,95054.0,95047.0,0.01052111]
[1768647535593,0.01052022,95055.0,95040.0,0.245126]
[1768647535594,0.04986372,95050.0,95045.0,0.01052133]
[1768647535823,0.06038416,95053.0,95049.0,0.01052088]
[1768647536776,0.04986372,95053.0,95049.0,0.01052088]
[1768647538257,0.04986372,95053.0,95050.0,0.01052077]
[1768647538661,0.01052033,95054.0,95050.0,0.01052077]
[1768647540396,0.01052033,95054.0,95049.0,0.01052088]
[1768647540594,0.01052055,95052.0,95047.0,0.01052111]
[1768647541589,0.04986372,95053.0,95049.0,0.01052088]
[1768647541760,0.01052055,95052.0,95047.0,0.01052111]
[1768647541966,0.01052066,95051.0,95047.0,0.01052111]
[1768647542860,0.01052066,95051.0,95046.0,0.01052122]
[1768647543042,0.06312402,95051.0,95046.0,0.01052122]
[1768647543443,0.01052066,95051.0,95047.0,0.01052111]
[1768647543855,0.01052077,95050.0,95046.0,0.01052122]
[1768647544055,0.01052066,95051.0,95047.0,0.01052111]
[1768647546024,0.01052055,95052.0,95047.0,0.01052111]
[1768647546874,0.01052055,95052.0,95048.0,0.01052099]
[1768647548550,0.06038438,95051.0,95044.0,0.0004642]
[1768647549278,0.01052088,95049.0,95044.0,0.01098564]
[1768647550239,0.01052111,95047.0,95040.0,0.13796188]
[1768647550468,0.0526061,95046.0,95040.0,0.13796188]
[1768647550647,0.01052111,95047.0,95040.0,0.12744]
[1768647550648,0.01052144,95044.0,95040.0,0.12744]
[1768647550813,0.01052144,95044.0,95040.0,0.13796188]
[1768647551637,0.01052144,95044.0,95040.0,0.01052188]
[1768647552111,0.01052133,95045.0,95040.0,0.01052188]
[1768647552543,0.01052133,95045.0,95041.0,0.01052177]
[1768647553814,0.01052144,95044.0,95040.0,0.01052188]
[1768647555333,0.01052155,95043.0,95039.0,0.00024734]
[1768647555713,0.06312933,95043.0,95039.0,0.00024734]
[1768647556121,0.06312933,95043.0,95039.0,0.01076889]